bitfinex/quotes_BTCUSD_20240908
["timestamp","ask_amount","ask_price","bid_price","bid_amount"]
[1725799507406,0.05466795,54558.0,54550.0,0.08263]
[1725799507643,1.08227195,54557.0,54550.0,0.08263]
[1725799507883,0.15466795,54556.0,54550.0,0.08263]
[1725799508149,0.13146539,54555.0,54550.0,0.08263]
[1725799508367,0.610722,54554.0,54550.0,0.08263]
[1725799509476,0.549392,54554.0,54553.0,0.00262]
[1725799509708,0.424992,54554.0,54553.0,0.00262]
[1725799509906,0.45373379,54554.0,54553.0,0.00162]
[1725799510114,0.45673379,54554.0,54553.0,0.00162]
[1725799510351,0.51307416,54554.0,54553.0,0.00162]
[1725799510557,0.48433237,54554.0,54553.0,0.00162]
[1725799510773,0.103,54554.0,54553.0,0.00162]
[1725799510986,0.18218018,54556.0,54553.0,0.00162]
[1725799511406,0.15466795,54556.0,54553.0,0.00262]
[1725799511629,0.08926853,54555.0,54553.0,0.00262]
[1725799511856,0.18926853,54555.0,54553.0,0.00262]
[1725799512326,0.18926853,54555.0,54553.0,0.00162]
[1725799512542,0.13460058,54555.0,54553.0,0.00162]
[1725799512982,0.03460058,54555.0,54553.0,0.00162]
[1725799513189,0.56554438,54554.0,54553.0,0.00162]
[1725799513547,0.66574245,54554.0,54553.0,0.00162]
[1725799513923,0.69448625,54554.0,54553.0,0.00162]
[1725799514144,0.77648446,54554.0,54553.0,0.00162]
[1725799515029,0.77848446,54554.0,54553.0,0.00162]
[1725799515483,0.80328625,54554.0,54553.0,0.00262]
[1725799515921,0.83628625,54554.0,54553.0,0.00262]
[1725799516571,0.83428625,54554.0,54553.0,0.00262]
[1725799516802,0.82728625,54554.0,54553.0,0.00162]
[1725799517043,0.83328625,54554.0,54553.0,0.00162]
[1725799517273,0.012,54552.0,54544.0,0.07443197]
[1725799517481,0.13681757,54550.0,54542.0,0.24969745]
[1725799517689,0.13681757,54550.0,54522.0,0.012]
[1725799517690,0.833433,54549.0,54532.0,0.24969745]
[1725799517906,0.19802506,54548.0,54532.0,0.24969745]
[1725799518368,0.570643,54547.0,54532.0,0.24969745]
[1725799518584,0.1,54546.0,54532.0,0.24969745]
[1725799518822,0.482647,54546.0,54532.0,0.24969745]
[1725799519063,0.1,54546.0,54532.0,0.24969745]
[1725799519712,0.0287478,54547.0,54532.0,0.24969745]
[1725799519915,0.01387478,54547.0,54533.0,0.00366713]
[1725799520123,0.104,54552.0,54533.0,0.00366713]
[1725799520124,0.001,54549.0,54533.0,0.00366713]
[1725799520357,0.001,54549.0,54542.0,0.0807]
[1725799520563,0.001,54549.0,54544.0,0.0807]
[1725799520564,0.02650277,54549.0,54544.0,0.0807]
[1725799520687,0.1,54557.0,54546.0,0.0807]
[1725799520908,0.23510039,54556.0,54548.0,0.0807]
[1725799521189,0.220356,54555.0,54548.0,0.0807]
[1725799521394,0.1,54555.0,54550.0,0.0807]
[1725799521603,0.12637105,54560.0,54550.0,0.0807]
[1725799522254,0.008,54556.0,54550.0,0.0807]
[1725799523296,0.05450821,54568.0,54553.0,0.01]
[1725799523481,0.014,54557.0,54554.0,0.0807]
[1725799523916,0.03743646,54568.0,54554.0,0.0807]
[1725799524070,0.011,54560.0,54554.0,0.0807]
[1725799524500,0.011,54560.0,54556.0,0.0807]
[1725799524705,0.011,54560.0,54558.0,0.0807]
[1725799525424,0.02652002,54568.0,54558.0,0.0807]
[1725799525610,1.262551,54569.0,54558.0,0.0807]
[1725799525814,1.03890192,54568.0,54558.0,0.0807]
[1725799526048,0.491176,54567.0,54558.0,0.0757]
[1725799526268,0.423211,54567.0,54558.0,0.0757]
[1725799526482,0.564263,54566.0,54558.0,0.0757]
[1725799526685,0.1,54565.0,54558.0,0.0757]
[1725799526918,0.4792803,54564.0,54558.0,0.0757]
[1725799527131,0.1,54563.0,54558.0,0.0767]
[1725799527379,0.1,54563.0,54558.0,0.0797]
[1725799527587,0.1,54563.0,54558.0,0.0787]
[1725799527791,0.1,54563.0,54558.0,0.0767]
[1725799528021,0.1106,54563.0,54558.0,0.0767]
[1725799528242,0.0106,54563.0,54558.0,0.0757]
[1725799528412,0.001,54564.0,54558.0,0.0757]
[1725799528658,0.000815,54560.0,54558.0,0.0757]
[1725799530354,0.000815,54560.0,54558.0,0.0767]
[1725799530582,0.000815,54560.0,54558.0,0.0757]
[1725799530794,0.000815,54560.0,54558.0,0.0767]
[1725799530983,0.000815,54560.0,54558.0,0.0787]
[1725799531429,0.02955552,54560.0,54558.0,0.0797]
[1725799531665,0.02955552,54560.0,54558.0,0.0767]
[1725799531926,0.02955552,54560.0,54558.0,0.0797]
[1725799532851,0.02955552,54560.0,54559.0,0.0973]
[1725799533063,0.02955552,54560.0,54559.0,0.177]
[1725799533873,0.05647271,54560.0,54559.0,0.177]
[1725799534114,0.05647271,54560.0,54559.0,0.181]
[1725799534531,0.05647271,54560.0,54559.0,0.184]
[1725799534747,0.05647271,54560.0,54559.0,0.181]
[1725799534959,0.05647271,54560.0,54559.0,0.177]
[1725799535146,0.05647271,54560.0,54559.0,0.184]
[1725799535352,0.05647271,54560.0,54559.0,0.181]
[1725799536941,0.05647271,54560.0,54559.0,0.184]
[1725799537156,0.05647271,54560.0,54559.0,0.177]
[1725799537374,0.05647271,54560.0,54559.0,0.181]
[1725799537618,0.1,54565.0,54559.0,0.181]
[1725799537837,0.07636466,54568.0,54559.0,0.184]
[1725799538072,0.07636466,54568.0,54560.0,0.0797]
[1725799538281,0.05455547,54568.0,54560.0,0.0797]
[1725799538950,0.002,54565.0,54560.0,0.0797]
[1725799539183,0.002,54565.0,54562.0,0.0797]
[1725799539640,0.002,54565.0,54563.0,0.0973]
[1725799539867,0.002,54565.0,54564.0,0.187]
[1725799540085,0.002,54565.0,54564.0,0.207]
[1725799540341,0.02646033,54574.0,54568.0,0.0973]
[1725799540571,0.02646033,54574.0,54569.0,0.0747]
[1725799540781,0.000815,54576.0,54569.0,0.0747]
[1725799541001,0.000815,54576.0,54569.0,0.0677]
[1725799541455,0.02749862,54576.0,54569.0,0.0677]
[1725799541660,0.007,54574.0,54569.0,0.0872]
[1725799541871,0.000815,54576.0,54568.0,0.1073]
[1725799542317,0.000815,54576.0,54558.0,0.55797348]
[1725799542318,0.006815,54576.0,54573.0,0.0973]
[1725799542778,0.000815,54574.0,54573.0,0.0973]
[1725799543014,0.000815,54574.0,54573.0,0.1073]
[1725799543246,0.000815,54574.0,54573.0,0.1273]
[1725799544199,0.000815,54574.0,54573.0,0.21]
[1725799545279,0.02954563,54574.0,54573.0,0.215]
[1725799545489,0.02954563,54574.0,54573.0,0.212]
[1725799546808,0.02954563,54574.0,54573.0,0.207]
[1725799547254,0.02954563,54574.0,54573.0,0.217]
[1725799547776,0.03054563,54574.0,54573.0,0.218]
[1725799548287,0.02954563,54574.0,54573.0,0.217]
[1725799548519,0.03054563,54574.0,54573.0,0.228]
[1725799550749,0.001815,54574.0,54573.0,0.228]
[1725799552343,0.001815,54574.0,54573.0,0.218]
[1725799552776,0.001815,54574.0,54573.0,0.229]
[1725799553896,0.000815,54574.0,54573.0,0.218]
[1725799554119,0.02954761,54574.0,54573.0,0.207]
[1725799554340,0.001815,54574.0,54573.0,0.219]
[1725799554565,0.001815,54574.0,54573.0,0.232]
[1725799554798,0.000815,54574.0,54573.0,0.22]
[1725799555676,0.000815,54574.0,54573.0,0.233]
[1725799555677,0.001815,54574.0,54573.0,0.233]
[1725799556826,0.02885261,54598.0,54581.0,0.0812]
[1725799557040,0.02885261,54598.0,54582.0,0.0949]
[1725799557041,0.55430836,54593.0,54582.0,0.0949]
[1725799557262,0.382806,54592.0,54582.0,0.0949]
[1725799557484,0.00012,54598.0,54582.0,0.0939]
[1725799557485,0.02872977,54594.0,54582.0,0.0939]
[1725799557706,0.49101998,54593.0,54582.0,0.0939]
[1725799557893,0.112202,54592.0,54582.0,0.0939]
[1725799558184,0.260947,54593.0,54582.0,0.0939]
[1725799558385,0.02872977,54594.0,54582.0,0.0939]
[1725799558622,0.112202,54593.0,54582.0,0.0939]
[1725799558846,0.03372977,54594.0,54582.0,0.0949]
[1725799559100,0.006,54593.0,54583.0,0.0812]
[1725799559298,0.106,54593.0,54583.0,0.0812]
[1725799560204,0.1,54593.0,54583.0,0.0812]
[1725799560423,0.04458104,54594.0,54583.0,0.0812]
[1725799560641,0.05058104,54594.0,54583.0,0.0812]
[1725799560851,0.0202681,54593.0,54584.0,0.01]
[1725799561535,0.73205,54592.0,54584.0,0.01]
[1725799562005,0.392802,54591.0,54584.0,0.01]
[1725799562228,0.0252681,54593.0,54584.0,0.01]
[1725799562489,0.193427,54592.0,54584.0,0.01]
[1725799562700,0.14133761,54591.0,54584.0,0.01]
[1725799563391,0.1,54591.0,54584.0,0.01]
[1725799563849,0.002,54592.0,54584.0,0.01]
[1725799564481,0.0202681,54593.0,54584.0,0.01]
[1725799564694,0.0202681,54593.0,54583.0,0.0812]
[1725799564695,0.001,54591.0,54583.0,0.0812]
[1725799564901,0.06429514,54590.0,54585.0,0.075]
[1725799565114,0.06429514,54590.0,54565.0,0.002]
[1725799565115,0.0275151,54593.0,54589.0,0.085]
[1725799565324,0.0325151,54593.0,54590.0,0.1007]
[1725799565553,0.002,54592.0,54591.0,0.075]
[1725799566912,0.02666259,54598.0,54591.0,0.075]
[1725799567115,0.004,54592.0,54591.0,0.075]
[1725799568197,0.004,54592.0,54591.0,0.078]
[1725799568436,0.02666259,54598.0,54591.0,0.078]
[1725799568916,0.004,54592.0,54591.0,0.078]
[1725799569167,0.02666259,54598.0,54591.0,0.078]
[1725799569415,0.02666259,54598.0,54591.0,0.08]
[1725799569858,0.02666259,54598.0,54591.0,0.075]
[1725799570101,0.0287295,54597.0,54591.0,0.075]
[1725799570812,0.0287295,54597.0,54592.0,0.1087]
[1725799571032,0.0287295,54597.0,54593.0,0.0846]
[1725799571273,0.0287295,54597.0,54595.0,0.0746]
[1725799571749,0.03166259,54598.0,54597.0,0.0846]
[1725799572027,0.03166259,54598.0,54597.0,0.1833]
[1725799572028,0.02666259,54598.0,54597.0,0.1833]
[1725799572474,0.03166259,54598.0,54597.0,0.1833]
[1725799572705,0.02666259,54598.0,54597.0,0.1833]
[1725799572927,0.02666259,54598.0,54597.0,0.1883]
[1725799574482,0.02766259,54598.0,54597.0,0.1953]
[1725799574904,0.05638581,54598.0,54597.0,0.1953]
[1725799579839,0.05720081,54598.0,54597.0,0.1953]
[1725799580296,0.02847759,54598.0,54597.0,0.1953]
[1725799586064,0.05465725,54612.0,54597.0,0.1207]
[1725799586274,0.06202107,54611.0,54598.0,0.0746]
[1725799586484,0.496434,54610.0,54598.0,0.0746]
[1725799586688,0.02872027,54608.0,54598.0,0.0746]
[1725799586901,0.32755,54607.0,54598.0,0.0746]
[1725799587109,0.02872027,54608.0,54603.0,0.0746]
[1725799587321,0.02872027,54608.0,54604.0,0.0987]
[1725799589039,0.003,54607.0,54604.0,0.0987]
[1725799589694,0.02872027,54608.0,54604.0,0.0987]
[1725799589984,0.0465923,54608.0,54604.0,0.0997]
[1725799590200,0.0515923,54608.0,54604.0,0.0997]
[1725799590411,0.0515923,54608.0,54604.0,0.0987]
[1725799590412,0.0415923,54608.0,54604.0,0.0987]
[1725799590837,0.003,54607.0,54604.0,0.0987]
[1725799592417,0.008,54607.0,54604.0,0.0987]
[1725799593058,0.005,54607.0,54604.0,0.0987]
[1725799594419,0.008,54607.0,54604.0,0.0987]
[1725799596817,0.0342053,54607.0,54604.0,0.0987]
[1725799597263,0.1342053,54607.0,54604.0,0.0987]
[1725799597484,0.17515983,54607.0,54604.0,0.0987]
[1725799597771,0.22981708,54607.0,54604.0,0.0987]
[1725799598640,0.22984732,54607.0,54604.0,0.0987]
[1725799600532,0.18889279,54607.0,54604.0,0.0987]
[1725799600747,0.05468749,54606.0,54604.0,0.0987]
[1725799602631,0.05468749,54605.0,54604.0,0.0987]
[1725799603617,0.05472803,54605.0,54604.0,0.0987]
[1725799603820,0.05572803,54605.0,54604.0,0.100328]
[1725799604071,0.15572803,54605.0,54604.0,0.100328]
[1725799604276,0.15872803,54605.0,54604.0,0.100328]
[1725799604605,0.104,54605.0,54604.0,0.100328]
[1725799605527,0.18609204,54605.0,54604.0,0.100328]
[1725799606978,0.08609204,54605.0,54604.0,0.100328]
[1725799608268,0.11345606,54605.0,54604.0,0.100328]
[1725799608520,0.21357269,54605.0,54604.0,0.100328]
[1725799610090,0.104,54605.0,54604.0,0.100328]
[1725799611147,0.24096587,54605.0,54604.0,0.100328]
[1725799611388,0.21364367,54605.0,54604.0,0.100328]
[1725799612248,0.104,54605.0,54604.0,0.100328]
[1725799613142,0.24096587,54605.0,54604.0,0.100328]
[1725799613355,0.24110959,54605.0,54604.0,0.100328]
[1725799614753,0.104,54605.0,54604.0,0.001628]
[1725799616254,0.004,54605.0,54604.0,0.001628]
[1725799618660,0.104,54605.0,54604.0,0.001628]
[1725799620907,0.13272089,54605.0,54604.0,0.001628]
[1725799621470,0.13272089,54605.0,54599.0,0.095]
[1725799621471,1.35573329,54605.0,54600.0,0.0791]
[1725799621694,1.052165,54604.0,54600.0,0.0791]
[1725799621896,0.1,54603.0,54600.0,0.0791]
[1725799622323,0.792655,54602.0,54600.0,0.0791]
[1725799622541,0.1,54601.0,54600.0,0.0791]
[1725799623516,0.16467867,54603.0,54600.0,0.0791]
[1725799623517,0.1,54602.0,54600.0,0.0811]
[1725799624253,0.1323413,54602.0,54600.0,0.0831]
[1725799624460,0.1323413,54602.0,54600.0,0.0811]
[1725799624667,0.1,54603.0,54600.0,0.0811]
[1725799624867,0.1,54603.0,54600.0,0.0791]
[1725799624868,0.795611,54602.0,54600.0,0.0791]
[1725799625046,0.1,54601.0,54600.0,0.0821]
[1725799625711,0.1,54601.0,54600.0,0.0791]
[1725799626000,0.001,54602.0,54600.0,0.0801]
[1725799626261,0.2896405,54603.0,54600.0,0.0801]
[1725799626383,1.86021,54602.0,54600.0,0.0791]
[1725799626751,0.26467867,54601.0,54600.0,0.0801]
[1725799626965,0.44966174,54601.0,54600.0,0.001]
[1725799627179,0.44966174,54601.0,54591.0,0.01]
[1725799627180,0.002,54598.0,54590.0,0.34359745]
[1725799627416,0.109732,54591.0,54590.0,0.24969745]
[1725799627620,0.91790601,54591.0,54590.0,0.24969745]
[1725799627823,0.91721701,54591.0,54590.0,0.24969745]
[1725799628081,0.89426971,54591.0,54590.0,0.24969745]
[1725799628282,0.7571047,54591.0,54582.0,0.01163]
[1725799628502,0.05479542,54583.0,54582.0,0.03163]
[1725799629149,0.1,54584.0,54582.0,0.03163]
[1725799629150,0.15479542,54584.0,54582.0,0.03163]
[1725799629422,0.18946041,54584.0,54582.0,0.03163]
[1725799629636,0.13466499,54584.0,54582.0,0.03163]
[1725799629860,0.02872927,54584.0,54582.0,0.03163]
[1725799630076,0.02872927,54584.0,54582.0,0.03563]
[1725799630291,0.02872927,54584.0,54583.0,0.0915]
[1725799630490,0.05570482,54584.0,54583.0,0.0915]
[1725799630698,0.08497416,54584.0,54583.0,0.0915]
[1725799631610,0.08219314,54588.0,54586.0,0.01]
[1725799631611,0.05475306,54588.0,54586.0,0.01]
[1725799631807,0.05475306,54589.0,54586.0,0.01]
[1725799632745,0.05475306,54590.0,54586.0,0.01]
[1725799632946,0.05475306,54590.0,54588.0,0.01]
[1725799633161,0.05475306,54590.0,54589.0,0.0755]
[1725799633362,0.02749653,54595.0,54589.0,0.0755]
[1725799633363,0.05475306,54591.0,54589.0,0.0755]
[1725799633595,0.05475306,54591.0,54589.0,0.0685]
[1725799633809,0.339604,54590.0,54589.0,0.0685]
[1725799634016,0.05475306,54592.0,54589.0,0.0685]
[1725799634248,0.007,54590.0,54589.0,0.0685]
[1725799634496,0.006,54590.0,54589.0,0.0685]
[1725799635585,0.775791,54590.0,54589.0,0.0685]
[1725799635865,0.86883041,54590.0,54586.0,0.001]
[1725799636074,0.904347,54589.0,54586.0,0.001]
[1725799636284,0.904347,54589.0,54584.0,0.1]
[1725799636285,0.860653,54588.0,54584.0,0.1]
[1725799636492,0.21083856,54587.0,54584.0,0.1]
[1725799636697,0.93876256,54587.0,54584.0,0.1]
[1725799636916,0.616513,54586.0,54584.0,0.1]
[1725799637129,0.1,54585.0,54584.0,0.1]
[1725799637542,0.1,54585.0,54583.0,0.0815]
[1725799637751,0.01,54584.0,54583.0,0.0815]
[1725799637956,0.01,54584.0,54582.0,0.00163]
[1725799638368,0.001,54587.0,54582.0,0.00163]
[1725799638591,1.380463,54586.0,54582.0,0.00163]
[1725799638814,0.1,54585.0,54582.0,0.00163]
[1725799639460,0.1,54585.0,54582.0,0.02063]
[1725799639740,0.101,54585.0,54582.0,0.00163]
[1725799639964,0.01556782,54584.0,54583.0,0.004]
[1725799640409,0.05467816,54588.0,54582.0,0.01263]
[1725799640635,0.480095,54587.0,54582.0,0.01263]
[1725799640839,0.1,54586.0,54582.0,0.01263]
[1725799641059,0.1,54586.0,54585.0,0.0915]
[1725799641266,0.1,54586.0,54585.0,0.1915]
[1725799641478,0.12873059,54586.0,54585.0,0.1905]
[1725799641900,0.02873059,54586.0,54585.0,0.1905]
[1725799643192,0.03673059,54586.0,54585.0,0.1905]
[1725799643409,0.03673059,54586.0,54583.0,0.00163]
[1725799643650,0.0270226,54588.0,54583.0,0.00163]
[1725799643651,0.943574,54587.0,54583.0,0.00163]
[1725799643864,0.1,54586.0,54583.0,0.00163]
[1725799644087,0.1,54586.0,54585.0,0.001]
[1725799644739,0.1,54586.0,54583.0,0.00163]
[1725799644967,0.585711,54585.0,54583.0,0.00163]
[1725799645419,0.508412,54584.0,54583.0,0.00163]
[1725799645647,0.508412,54584.0,54580.0,0.03829003]
[1725799645860,0.468113,54583.0,54580.0,0.03829003]
[1725799646070,0.468113,54583.0,54582.0,0.009]
[1725799646071,0.1,54583.0,54582.0,0.009]
[1725799646963,0.002,54584.0,54582.0,0.009]
[1725799647181,0.529939,54588.0,54582.0,0.009]
[1725799647642,0.002,54583.0,54582.0,0.009]
[1725799648082,0.001,54583.0,54582.0,0.109]
[1725799648526,0.001,54583.0,54582.0,0.1]
[1725799648769,0.001,54583.0,54582.0,0.109]
[1725799649193,0.001,54583.0,54582.0,0.1]
[1725799649411,0.003,54584.0,54582.0,0.1]
[1725799649646,0.001,54583.0,54582.0,0.109]
[1725799650106,0.003,54583.0,54582.0,0.109]
[1725799650334,0.0784,54587.0,54582.0,0.109]
[1725799650556,0.001,54583.0,54582.0,0.109]
[1725799651185,0.1,54585.0,54582.0,0.109]
[1725799651409,0.02873007,54583.0,54582.0,0.109]
[1725799652051,0.02973007,54583.0,54582.0,0.109]
[1725799652480,0.02973007,54583.0,54582.0,0.1]
[1725799652698,0.05555957,54583.0,54582.0,0.1]
[1725799653560,0.05655957,54583.0,54582.0,0.1]
[1725799653796,0.05655957,54583.0,54582.0,0.109]
[1725799654026,0.05455957,54583.0,54582.0,0.109]
[1725799654272,0.05455957,54583.0,54582.0,0.11063]
[1725799654945,0.05455957,54583.0,54582.0,0.00163]
[1725799654946,0.30183757,54583.0,54582.0,0.00163]
[1725799655158,1.16625457,54583.0,54582.0,0.00163]
[1725799655436,1.31391457,54583.0,54582.0,0.00163]
[1725799655881,1.31791457,54583.0,54582.0,0.00163]
[1725799656089,1.20921157,54583.0,54582.0,0.00163]
[1725799656538,1.20821157,54583.0,54582.0,0.00163]
[1725799656786,1.1794815,54583.0,54582.0,0.00163]
[1725799656996,1.1834815,54583.0,54582.0,0.00163]
[1725799657213,1.1794815,54583.0,54582.0,0.00163]
[1725799657438,1.1844815,54583.0,54582.0,0.00163]
[1725799657886,1.1794815,54583.0,54582.0,0.00163]
[1725799658133,1.1844815,54583.0,54582.0,0.00163]
[1725799658324,0.6260245,54583.0,54582.0,0.00163]
[1725799659504,0.6260245,54583.0,54575.0,0.0735]
[1725799659715,0.6260245,54583.0,54574.0,0.1006]
[1725799659716,0.05460916,54581.0,54574.0,0.1006]
[1725799659935,0.05460916,54581.0,54572.0,0.0735]
[1725799659936,0.05460916,54579.0,54572.0,0.0735]
[1725799660176,0.05460916,54579.0,54569.0,0.00163]
[1725799660177,0.05460916,54575.0,54569.0,0.00163]
[1725799660392,0.05460916,54573.0,54569.0,0.00163]
[1725799660611,0.842321,54572.0,54569.0,0.00163]
[1725799660839,1.50665238,54571.0,54563.0,0.24969745]
[1725799661047,1.06139538,54570.0,54562.0,0.1096]
[1725799661264,0.258702,54569.0,54562.0,0.1096]
[1725799661477,0.447833,54568.0,54562.0,0.1096]
[1725799661707,0.621582,54570.0,54562.0,0.1096]
[1725799661912,0.1,54569.0,54562.0,0.1096]
[1725799662129,0.62638,54569.0,54562.0,0.1096]
[1725799662591,0.525116,54568.0,54562.0,0.1106]
[1725799662818,0.438003,54567.0,54562.0,0.1096]
[1725799663059,0.0794604,54567.0,54562.0,0.1096]
[1725799663296,0.105,54569.0,54562.0,0.1096]
[1725799663537,0.02873968,54566.0,54562.0,0.1096]
[1725799664018,0.02873968,54566.0,54563.0,0.1741]
[1725799665137,0.02973968,54566.0,54563.0,0.1741]
[1725799665361,0.02873968,54566.0,54563.0,0.1741]
[1725799665876,0.03073968,54566.0,54563.0,0.1741]
[1725799666344,0.0571433,54566.0,54563.0,0.1741]
[1725799666563,0.02840362,54566.0,54563.0,0.1741]
[1725799666774,0.02940362,54566.0,54563.0,0.1741]
[1725799668054,0.02840362,54566.0,54563.0,0.17573]
[1725799668352,0.02940362,54566.0,54563.0,0.17573]
[1725799669006,0.02840362,54566.0,54563.0,0.17573]
[1725799669232,0.02740362,54566.0,54563.0,0.17573]
[1725799669445,0.02840362,54566.0,54563.0,0.17973]
[1725799669664,0.001,54566.0,54563.0,0.17973]
[1725799669895,0.0762,54572.0,54563.0,0.17973]
[1725799670104,2.9805165,54572.0,54563.0,0.17973]
[1725799670313,2.072652,54571.0,54563.0,0.18073]
[1725799670539,0.1,54570.0,54563.0,0.18073]
[1725799670787,0.18498307,54569.0,54563.0,0.18073]
[1725799671004,0.851242,54568.0,54563.0,0.17673]
[1725799671235,0.634941,54567.0,54563.0,0.17773]
[1725799671441,0.09199241,54566.0,54563.0,0.17673]
[1725799671663,0.19199241,54566.0,54563.0,0.17573]
[1725799671877,0.1,54566.0,54563.0,0.17773]
[1725799672130,0.1,54568.0,54563.0,0.17673]
[1725799672339,0.1,54568.0,54563.0,0.17573]
[1725799672340,0.452557,54567.0,54563.0,0.17573]
[1725799672562,0.1,54566.0,54563.0,0.17573]
[1725799672789,0.0655557,54565.0,54563.0,0.17573]
[1725799672970,0.101,54566.0,54563.0,0.00163]
[1725799673459,0.1,54566.0,54563.0,0.00163]
[1725799673668,0.15455934,54570.0,54563.0,0.00163]
[1725799673878,0.58447435,54569.0,54563.0,0.00163]
[1725799674089,0.1,54568.0,54563.0,0.00163]
[1725799674298,0.636155,54568.0,54563.0,0.00163]
[1725799674515,0.491348,54567.0,54563.0,0.00163]
[1725799674767,0.1,54566.0,54563.0,0.00163]
[1725799674985,0.07416674,54565.0,54563.0,0.00163]
[1725799675415,0.07416674,54565.0,54558.0,0.00163]
[1725799675416,1.026328,54564.0,54558.0,0.00163]
[1725799675645,0.05459682,54562.0,54549.0,0.07922]
[1725799675859,0.05459682,54562.0,54543.0,0.009]
[1725799675860,0.13646946,54558.0,54543.0,0.009]
[1725799676121,0.11119364,54560.0,54542.0,0.56493836]
[1725799676122,0.05457423,54555.0,54542.0,0.56493836]
[1725799676344,0.05457423,54553.0,54542.0,0.00163]
[1725799676576,1.34145923,54552.0,54542.0,0.00163]
[1725799676788,1.29634618,54551.0,54542.0,0.00163]
[1725799677026,1.128388,54550.0,54542.0,0.00163]
[1725799677258,0.796839,54549.0,54542.0,0.00163]
[1725799677489,0.47966,54548.0,54542.0,0.00163]
[1725799677668,1.289404,54550.0,54542.0,0.01063]
[1725799678161,0.1,54549.0,54542.0,0.01063]
[1725799678384,0.813705,54549.0,54542.0,0.00163]
[1725799678644,0.601634,54548.0,54542.0,0.00163]
[1725799678880,0.43619,54547.0,54542.0,0.01063]
[1725799679093,0.1,54546.0,54543.0,0.009]
[1725799679310,0.1,54546.0,54539.0,0.019]
[1725799679311,0.0927,54526.0,54509.0,0.0997]
[1725799679560,0.0927,54526.0,54515.0,0.55430836]
[1725799679561,1.309722,54525.0,54515.0,0.55430836]
[1725799679789,1.309722,54525.0,54509.0,0.18096906]
[1725799679790,0.176789,54524.0,54509.0,0.1773]
[1725799680024,0.1,54523.0,54509.0,0.1773]
[1725799680462,0.43416,54522.0,54509.0,0.1773]
[1725799680692,0.1,54521.0,54509.0,0.1773]
[1725799680918,0.423076,54520.0,54509.0,0.1773]
[1725799681187,0.1,54519.0,54509.0,0.1773]
[1725799681432,0.1,54521.0,54509.0,0.1773]
[1725799681668,0.1,54521.0,54509.0,0.1793]
[1725799681903,0.1,54521.0,54509.0,0.1773]
[1725799682154,0.006,54520.0,54511.0,0.0776]
[1725799682376,0.006,54520.0,54512.0,0.00366835]
[1725799682584,0.1,54533.0,54513.0,0.0997]
[1725799682800,0.006,54521.0,54513.0,0.0997]
[1725799683254,0.005,54521.0,54513.0,0.0997]
[1725799683530,0.005,54521.0,54476.0,0.00643694]
[1725799683531,0.0762,54491.0,54476.0,0.00643694]
[1725799683756,0.005,54521.0,54468.0,0.28661266]
[1725799683757,0.0762,54498.0,54497.0,0.55430836]
[1725799684002,0.0762,54498.0,54477.0,0.25613693]
[1725799684003,0.614783,54498.0,54482.0,0.00643694]
[1725799684239,0.614783,54498.0,54477.0,0.24969999]
[1725799684240,0.429275,54497.0,54477.0,0.24969999]
[1725799684475,0.213164,54496.0,54477.0,0.24113693]
[1725799684688,0.1,54496.0,54477.0,0.24113693]
[1725799684901,0.542864,54495.0,54477.0,0.24113693]
[1725799685141,0.1,54494.0,54477.0,0.24113693]
[1725799685376,0.366432,54494.0,54477.0,0.24113693]
[1725799685616,0.189451,54493.0,54477.0,0.24113693]
[1725799685848,0.1,54494.0,54478.0,0.00367092]
[1725799685849,0.001,54491.0,54478.0,0.00367092]
[1725799686355,0.00366838,54498.0,54478.0,0.00367092]
[1725799686586,0.002,54494.0,54478.0,0.00367092]
[1725799686822,0.200138,54493.0,54478.0,0.00367092]
[1725799687057,0.185198,54493.0,54478.0,0.00367092]
[1725799687289,0.19983,54493.0,54478.0,0.00367092]
[1725799687562,0.001,54491.0,54478.0,0.00367092]
[1725799687803,0.62517,54490.0,54477.0,0.24313693]
[1725799688022,0.17665222,54489.0,54477.0,0.24113693]
[1725799688448,0.1,54489.0,54478.0,0.001]
[1725799689138,0.001,54493.0,54477.0,0.24113693]
[1725799689555,0.001,54489.0,54477.0,0.24313693]
[1725799689786,0.001,54489.0,54477.0,0.24113693]
[1725799690008,0.002,54489.0,54478.0,0.00367075]
[1725799690219,0.02877732,54487.0,54478.0,0.00367075]
[1725799690848,0.001,54489.0,54478.0,0.00367075]
[1725799691348,0.001,54489.0,54483.0,0.128478]
[1725799691349,0.002,54489.0,54483.0,0.128478]
[1725799691586,0.001,54493.0,54484.0,0.0873478]
[1725799691813,0.001,54493.0,54485.0,0.0993]
[1725799692042,0.001,54493.0,54487.0,0.0993]
[1725799692263,0.00366838,54518.0,54487.0,0.0983]
[1725799692524,0.589301,54517.0,54487.0,0.0983]
[1725799692736,0.02876567,54497.0,54487.0,0.0973]
[1725799692946,0.00366838,54516.0,54487.0,0.0973]
[1725799693166,0.00366838,54516.0,54488.0,0.01764694]
[1725799693167,0.02876647,54510.0,54488.0,0.01764694]
[1725799693383,0.02876647,54510.0,54489.0,0.00366942]
[1725799693593,0.001,54493.0,54490.0,0.0735]
[1725799693824,0.001,54493.0,54491.0,0.00366942]
[1725799695390,0.0287663,54497.0,54491.0,0.00366942]
[1725799695610,0.0297663,54497.0,54492.0,0.0993]
[1725799695835,0.0297663,54497.0,54493.0,0.00366945]
[1725799696049,0.0287663,54497.0,54493.0,0.00366945]
[1725799696289,0.0287663,54497.0,54493.0,0.00266945]
[1725799696986,0.0297663,54497.0,54493.0,0.00266945]